{"text_format":"3","workbook":"xlsx","n_sheets":4,"sheets":["Budgetoversigt","Budgetopsummering","Månedlige udgifter","Yderligere data"],"not_rendered":{"charts":1,"images":4,"defined_names":7,"pivot_tables":2},"read":"whole","date_system":"1900"}

{"sheet":"Budgetoversigt","index":0,"n_rows":12,"n_cols":8,"rows_kept":12,"merged":[[2,1,2,2],[3,1,3,2],[4,1,4,2]]}
[{"$nulls":7}," "]
[null,"Saldo"]
[null,"Forventet saldo",null,{"$f":"Forventet_Indtægt-Forventede_Udgifter","v":{"v":1585,"d":"kr. 1,585"}},null,"Forventet minus udgifter"]
[null,"Faktisk saldo ",null,{"$f":"Faktisk_Indtægt-Faktiske_Udgifter","v":{"v":1740,"d":"kr. 1,740"}},null,"Aktuel minus udgifter"]
[null,"Difference",null,{"$f":"D4-D3","v":{"v":155,"d":"kr. 155"}},null,"Aktuel minus forventet"]
[null,"Indtægter",{"$nulls":3},"Udgifter"]
[null,null,"Projekteret","Faktisk",null,"Projekteret","Faktisk"]
[null,"Indtægt 1",{"v":6000,"d":"kr. 6,000"},{"v":5800,"d":"kr. 5,800"},null,{"$f":"SUM(Månedlige_Udgifter_Tabel[Forventede omkostninger])","v":{"v":7915,"d":"kr. 7,915"}},{"$f":"SUM(Månedlige_Udgifter_Tabel[Faktiske omkostninger])","v":{"v":7860,"d":"kr. 7,860"}}]
[null,"Indtægt 2",{"v":1000,"d":"kr. 1,000"},{"v":2300,"d":"kr. 2,300"}]
[null,"Yderligere indtægt",{"v":2500,"d":"kr. 2,500"},{"v":1500,"d":"kr. 1,500"}]
[null,"Indtægter i alt",{"$f":"SUM(C8:C10)","v":{"v":9500,"d":"kr. 9,500"}},{"$f":"SUM(D8:D10)","v":{"v":9600,"d":"kr. 9,600"}}]
[null,"Opdeling af faktiske udgifter"]

{"sheet":"Budgetopsummering","index":1,"n_rows":41,"n_cols":7,"rows_kept":41}
[null,"Budgetopsummering",{"$nulls":4}," "]
[]
[null,"Categories","Forventede omkostninger ","Faktiske omkostninger ","Difference "]
[null,"Børn",{"v":140,"d":"kr. 140"},{"v":140,"d":"kr. 140"},{"v":0,"d":"kr. 0"}]
[null,"Ekstraaktiviteter i forbindelse med skole/studier",{"v":40,"d":"kr. 40"},{"v":40,"d":"kr. 40"},{"v":0,"d":"kr. 0"}]
[null,"Skoleartikler",null,null,{"v":0,"d":"kr. 0"}]
[null,"Skolebetaling",{"v":100,"d":"kr. 100"},{"v":100,"d":"kr. 100"},{"v":0,"d":"kr. 0"}]
[null,"Sundhed",null,null,{"v":0,"d":"kr. 0"}]
[]
[null,"Underholdning",{"v":400,"d":"kr. 400"},{"v":358,"d":"kr. 358"},{"v":42,"d":"kr. 42"}]
[null,"Film",{"v":50,"d":"kr. 50"},{"v":28,"d":"kr. 28"},{"v":22,"d":"kr. 22"}]
[null,"Koncerter",{"v":50,"d":"kr. 50"},{"v":40,"d":"kr. 40"},{"v":10,"d":"kr. 10"}]
[null,"Musik (cd'er, downloads osv.)",{"v":50,"d":"kr. 50"},{"v":30,"d":"kr. 30"},{"v":20,"d":"kr. 20"}]
[null,"Sportsbegivenheder",{"v":0,"d":"kr. 0"},{"v":40,"d":"kr. 40"},{"v":-40,"d":"kr. -40"}]
[null,"Teater",{"v":200,"d":"kr. 200"},{"v":150,"d":"kr. 150"},{"v":50,"d":"kr. 50"}]
[null,"Video/dvd (køb)",{"v":20,"d":"kr. 20"},{"v":50,"d":"kr. 50"},{"v":-30,"d":"kr. -30"}]
[null,"Video/dvd (leje)",{"v":30,"d":"kr. 30"},{"v":20,"d":"kr. 20"},{"v":10,"d":"kr. 10"}]
[]
[null,"Bolig",{"v":2830,"d":"kr. 2,830"},{"v":2702,"d":"kr. 2,702"},{"v":-72,"d":"kr. -72"}]
[]
[null,"Forsikring",{"v":900,"d":"kr. 900"},{"v":900,"d":"kr. 900"},{"v":0,"d":"kr. 0"}]
[]
[null,"Gaver og velgørenhed",{"v":100,"d":"kr. 100"},{"v":125,"d":"kr. 125"},{"v":-25,"d":"kr. -25"}]
[]
[null,"Kæledyr",{"v":170,"d":"kr. 170"},{"v":100,"d":"kr. 100"},{"v":70,"d":"kr. 70"}]
[]
[null,"Lån",{"v":200,"d":"kr. 200"},{"v":200,"d":"kr. 200"},{"v":0,"d":"kr. 0"}]
[]
[null,"Mad",{"v":1100,"d":"kr. 1,100"},{"v":1320,"d":"kr. 1,320"},{"v":-220,"d":"kr. -220"}]
[]
[null,"Personlig pleje",{"v":150,"d":"kr. 150"},{"v":140,"d":"kr. 140"},{"v":10,"d":"kr. 10"}]
[]
[null,"Skat",{"v":300,"d":"kr. 300"},{"v":300,"d":"kr. 300"},{"v":0,"d":"kr. 0"}]
[]
[null,"Transport",{"v":1425,"d":"kr. 1,425"},{"v":1375,"d":"kr. 1,375"},{"v":50,"d":"kr. 50"}]
[]
[null,"Opsparing",{"v":200,"d":"kr. 200"},{"v":200,"d":"kr. 200"},{"v":0,"d":"kr. 0"}]
[null,"Investeringskonto",{"v":200,"d":"kr. 200"},{"v":200,"d":"kr. 200"},{"v":0,"d":"kr. 0"}]
[null,"Pensionskonto",null,null,{"v":0,"d":"kr. 0"}]
[]
[null,"Hovedtotal",{"v":7915,"d":"kr. 7,915"},{"v":7860,"d":"kr. 7,860"},{"v":-145,"d":"kr. -145"}]

{"sheet":"Månedlige udgifter","index":2,"n_rows":61,"n_cols":8,"rows_kept":61}
[{"$nulls":7}," "]
[null,"Beskrivelse","Kategori","Forventede omkostninger","Faktiske omkostninger","Difference","Oversigt over faktiske omkostninger"]
[null,"Ekstraaktiviteter i forbindelse med skole/studier","Børn",{"v":40,"d":"kr. 40"},{"v":40,"d":"kr. 40"},{"$f":"IF(OR(Månedlige_Udgifter_Tabel[[#This Row],[Forventede omkostninger]]=\"\",Månedlige_Udgifter_Tabel[[#This Row],[Faktiske omkostninger]]=\"\"),\"\",Månedlige_Udgifter_Tabel[[#This Row],[Forventede omkostninger]]-Månedlige_Udgifter_Tabel[[#This Row],[Faktiske omkostninger]])","v":{"v":0,"d":"kr. 0"}},{"$f":"Månedlige_Udgifter_Tabel[[#This Row],[Faktiske omkostninger]]","v":40}]
[null,"Sundhed","Børn",null,null,{"$f":"IF(OR(Månedlige_Udgifter_Tabel[[#This Row],[Forventede omkostninger]]=\"\",Månedlige_Udgifter_Tabel[[#This Row],[Faktiske omkostninger]]=\"\"),\"\",Månedlige_Udgifter_Tabel[[#This Row],[Forventede omkostninger]]-Månedlige_Udgifter_Tabel[[#This Row],[Faktiske omkostninger]])","v":""},{"$f":"Månedlige_Udgifter_Tabel[[#This Row],[Faktiske omkostninger]]","v":0}]
[null,"Skoleartikler","Børn",null,null,{"$f":"IF(OR(Månedlige_Udgifter_Tabel[[#This Row],[Forventede omkostninger]]=\"\",Månedlige_Udgifter_Tabel[[#This Row],[Faktiske omkostninger]]=\"\"),\"\",Månedlige_Udgifter_Tabel[[#This Row],[Forventede omkostninger]]-Månedlige_Udgifter_Tabel[[#This Row],[Faktiske omkostninger]])","v":""},{"$f":"Månedlige_Udgifter_Tabel[[#This Row],[Faktiske omkostninger]]","v":0}]
[null,"Skolebetaling","Børn",{"v":100,"d":"kr. 100"},{"v":100,"d":"kr. 100"},{"$f":"IF(OR(Månedlige_Udgifter_Tabel[[#This Row],[Forventede omkostninger]]=\"\",Månedlige_Udgifter_Tabel[[#This Row],[Faktiske omkostninger]]=\"\"),\"\",Månedlige_Udgifter_Tabel[[#This Row],[Forventede omkostninger]]-Månedlige_Udgifter_Tabel[[#This Row],[Faktiske omkostninger]])","v":{"v":0,"d":"kr. 0"}},{"$f":"Månedlige_Udgifter_Tabel[[#This Row],[Faktiske omkostninger]]","v":100}]
[null,"Koncerter","Underholdning",{"v":50,"d":"kr. 50"},{"v":40,"d":"kr. 40"},{"$f":"IF(OR(Månedlige_Udgifter_Tabel[[#This Row],[Forventede omkostninger]]=\"\",Månedlige_Udgifter_Tabel[[#This Row],[Faktiske omkostninger]]=\"\"),\"\",Månedlige_Udgifter_Tabel[[#This Row],[Forventede omkostninger]]-Månedlige_Udgifter_Tabel[[#This Row],[Faktiske omkostninger]])","v":{"v":10,"d":"kr. 10"}},{"$f":"Månedlige_Udgifter_Tabel[[#This Row],[Faktiske omkostninger]]","v":40}]
[null,"Teater","Underholdning",{"v":200,"d":"kr. 200"},{"v":150,"d":"kr. 150"},{"$f":"IF(OR(Månedlige_Udgifter_Tabel[[#This Row],[Forventede omkostninger]]=\"\",Månedlige_Udgifter_Tabel[[#This Row],[Faktiske omkostninger]]=\"\"),\"\",Månedlige_Udgifter_Tabel[[#This Row],[Forventede omkostninger]]-Månedlige_Udgifter_Tabel[[#This Row],[Faktiske omkostninger]])","v":{"v":50,"d":"kr. 50"}},{"$f":"Månedlige_Udgifter_Tabel[[#This Row],[Faktiske omkostninger]]","v":150}]
[null,"Film","Underholdning",{"v":50,"d":"kr. 50"},{"v":28,"d":"kr. 28"},{"$f":"IF(OR(Månedlige_Udgifter_Tabel[[#This Row],[Forventede omkostninger]]=\"\",Månedlige_Udgifter_Tabel[[#This Row],[Faktiske omkostninger]]=\"\"),\"\",Månedlige_Udgifter_Tabel[[#This Row],[Forventede omkostninger]]-Månedlige_Udgifter_Tabel[[#This Row],[Faktiske omkostninger]])","v":{"v":22,"d":"kr. 22"}},{"$f":"Månedlige_Udgifter_Tabel[[#This Row],[Faktiske omkostninger]]","v":28}]
[null,"Musik (cd'er, downloads osv.)","Underholdning",{"v":50,"d":"kr. 50"},{"v":30,"d":"kr. 30"},{"$f":"IF(OR(Månedlige_Udgifter_Tabel[[#This Row],[Forventede omkostninger]]=\"\",Månedlige_Udgifter_Tabel[[#This Row],[Faktiske omkostninger]]=\"\"),\"\",Månedlige_Udgifter_Tabel[[#This Row],[Forventede omkostninger]]-Månedlige_Udgifter_Tabel[[#This Row],[Faktiske omkostninger]])","v":{"v":20,"d":"kr. 20"}},{"$f":"Månedlige_Udgifter_Tabel[[#This Row],[Faktiske omkostninger]]","v":30}]
[null,"Sportsbegivenheder","Underholdning",{"v":0,"d":"kr. 0"},{"v":40,"d":"kr. 40"},{"$f":"IF(OR(Månedlige_Udgifter_Tabel[[#This Row],[Forventede omkostninger]]=\"\",Månedlige_Udgifter_Tabel[[#This Row],[Faktiske omkostninger]]=\"\"),\"\",Månedlige_Udgifter_Tabel[[#This Row],[Forventede omkostninger]]-Månedlige_Udgifter_Tabel[[#This Row],[Faktiske omkostninger]])","v":{"v":-40,"d":"kr. -40"}},{"$f":"Månedlige_Udgifter_Tabel[[#This Row],[Faktiske omkostninger]]","v":40}]
[null,"Video/dvd (køb)","Underholdning",{"v":20,"d":"kr. 20"},{"v":50,"d":"kr. 50"},{"$f":"IF(OR(Månedlige_Udgifter_Tabel[[#This Row],[Forventede omkostninger]]=\"\",Månedlige_Udgifter_Tabel[[#This Row],[Faktiske omkostninger]]=\"\"),\"\",Månedlige_Udgifter_Tabel[[#This Row],[Forventede omkostninger]]-Månedlige_Udgifter_Tabel[[#This Row],[Faktiske omkostninger]])","v":{"v":-30,"d":"kr. -30"}},{"$f":"Månedlige_Udgifter_Tabel[[#This Row],[Faktiske omkostninger]]","v":50}]
[null,"Video/dvd (leje)","Underholdning",{"v":30,"d":"kr. 30"},{"v":20,"d":"kr. 20"},{"$f":"IF(OR(Månedlige_Udgifter_Tabel[[#This Row],[Forventede omkostninger]]=\"\",Månedlige_Udgifter_Tabel[[#This Row],[Faktiske omkostninger]]=\"\"),\"\",Månedlige_Udgifter_Tabel[[#This Row],[Forventede omkostninger]]-Månedlige_Udgifter_Tabel[[#This Row],[Faktiske omkostninger]])","v":{"v":10,"d":"kr. 10"}},{"$f":"Månedlige_Udgifter_Tabel[[#This Row],[Faktiske omkostninger]]","v":20}]
[null,"Restaurantbesøg","Mad",{"v":1000,"d":"kr. 1,000"},{"v":1200,"d":"kr. 1,200"},{"$f":"IF(OR(Månedlige_Udgifter_Tabel[[#This Row],[Forventede omkostninger]]=\"\",Månedlige_Udgifter_Tabel[[#This Row],[Faktiske omkostninger]]=\"\"),\"\",Månedlige_Udgifter_Tabel[[#This Row],[Forventede omkostninger]]-Månedlige_Udgifter_Tabel[[#This Row],[Faktiske omkostninger]])","v":{"v":-200,"d":"kr. -200"}},{"$f":"Månedlige_Udgifter_Tabel[[#This Row],[Faktiske omkostninger]]","v":1200}]
[null,"Dagligvarer","Mad",{"v":100,"d":"kr. 100"},{"v":120,"d":"kr. 120"},{"$f":"IF(OR(Månedlige_Udgifter_Tabel[[#This Row],[Forventede omkostninger]]=\"\",Månedlige_Udgifter_Tabel[[#This Row],[Faktiske omkostninger]]=\"\"),\"\",Månedlige_Udgifter_Tabel[[#This Row],[Forventede omkostninger]]-Månedlige_Udgifter_Tabel[[#This Row],[Faktiske omkostninger]])","v":{"v":-20,"d":"kr. -20"}},{"$f":"Månedlige_Udgifter_Tabel[[#This Row],[Faktiske omkostninger]]","v":120}]
[null,"Velgørenhed 1","Gaver og velgørenhed",{"v":75,"d":"kr. 75"},{"v":100,"d":"kr. 100"},{"$f":"IF(OR(Månedlige_Udgifter_Tabel[[#This Row],[Forventede omkostninger]]=\"\",Månedlige_Udgifter_Tabel[[#This Row],[Faktiske omkostninger]]=\"\"),\"\",Månedlige_Udgifter_Tabel[[#This Row],[Forventede omkostninger]]-Månedlige_Udgifter_Tabel[[#This Row],[Faktiske omkostninger]])","v":{"v":-25,"d":"kr. -25"}},{"$f":"Månedlige_Udgifter_Tabel[[#This Row],[Faktiske omkostninger]]","v":100}]
[null,"Velgørenhed 2","Gaver og velgørenhed",{"v":25,"d":"kr. 25"},{"v":25,"d":"kr. 25"},{"$f":"IF(OR(Månedlige_Udgifter_Tabel[[#This Row],[Forventede omkostninger]]=\"\",Månedlige_Udgifter_Tabel[[#This Row],[Faktiske omkostninger]]=\"\"),\"\",Månedlige_Udgifter_Tabel[[#This Row],[Forventede omkostninger]]-Månedlige_Udgifter_Tabel[[#This Row],[Faktiske omkostninger]])","v":{"v":0,"d":"kr. 0"}},{"$f":"Månedlige_Udgifter_Tabel[[#This Row],[Faktiske omkostninger]]","v":25}]
[null,"Gave 1","Gaver og velgørenhed",null,null,{"$f":"IF(OR(Månedlige_Udgifter_Tabel[[#This Row],[Forventede omkostninger]]=\"\",Månedlige_Udgifter_Tabel[[#This Row],[Faktiske omkostninger]]=\"\"),\"\",Månedlige_Udgifter_Tabel[[#This Row],[Forventede omkostninger]]-Månedlige_Udgifter_Tabel[[#This Row],[Faktiske omkostninger]])","v":""},{"$f":"Månedlige_Udgifter_Tabel[[#This Row],[Faktiske omkostninger]]","v":0}]
[null,"Gave 2","Gaver og velgørenhed",null,null,{"$f":"IF(OR(Månedlige_Udgifter_Tabel[[#This Row],[Forventede omkostninger]]=\"\",Månedlige_Udgifter_Tabel[[#This Row],[Faktiske omkostninger]]=\"\"),\"\",Månedlige_Udgifter_Tabel[[#This Row],[Forventede omkostninger]]-Månedlige_Udgifter_Tabel[[#This Row],[Faktiske omkostninger]])","v":""},{"$f":"Månedlige_Udgifter_Tabel[[#This Row],[Faktiske omkostninger]]","v":0}]
[null,"Kabel/satellit-tv","Bolig",{"v":100,"d":"kr. 100"},{"v":100,"d":"kr. 100"},{"$f":"IF(OR(Månedlige_Udgifter_Tabel[[#This Row],[Forventede omkostninger]]=\"\",Månedlige_Udgifter_Tabel[[#This Row],[Faktiske omkostninger]]=\"\"),\"\",Månedlige_Udgifter_Tabel[[#This Row],[Forventede omkostninger]]-Månedlige_Udgifter_Tabel[[#This Row],[Faktiske omkostninger]])","v":{"v":0,"d":"kr. 0"}},{"$f":"Månedlige_Udgifter_Tabel[[#This Row],[Faktiske omkostninger]]","v":100}]
[null,"Elektricitet","Bolig",{"v":45,"d":"kr. 45"},{"v":50,"d":"kr. 50"},{"$f":"IF(OR(Månedlige_Udgifter_Tabel[[#This Row],[Forventede omkostninger]]=\"\",Månedlige_Udgifter_Tabel[[#This Row],[Faktiske omkostninger]]=\"\"),\"\",Månedlige_Udgifter_Tabel[[#This Row],[Forventede omkostninger]]-Månedlige_Udgifter_Tabel[[#This Row],[Faktiske omkostninger]])","v":{"v":-5,"d":"kr. -5"}},{"$f":"Månedlige_Udgifter_Tabel[[#This Row],[Faktiske omkostninger]]","v":50}]
[null,"Gas","Bolig",{"v":300,"d":"kr. 300"},{"v":400,"d":"kr. 400"},{"$f":"IF(OR(Månedlige_Udgifter_Tabel[[#This Row],[Forventede omkostninger]]=\"\",Månedlige_Udgifter_Tabel[[#This Row],[Faktiske omkostninger]]=\"\"),\"\",Månedlige_Udgifter_Tabel[[#This Row],[Forventede omkostninger]]-Månedlige_Udgifter_Tabel[[#This Row],[Faktiske omkostninger]])","v":{"v":-100,"d":"kr. -100"}},{"$f":"Månedlige_Udgifter_Tabel[[#This Row],[Faktiske omkostninger]]","v":400}]
[null,"Rengøringshjælp","Bolig",{"v":200,"d":"kr. 200"},null,{"$f":"IF(OR(Månedlige_Udgifter_Tabel[[#This Row],[Forventede omkostninger]]=\"\",Månedlige_Udgifter_Tabel[[#This Row],[Faktiske omkostninger]]=\"\"),\"\",Månedlige_Udgifter_Tabel[[#This Row],[Forventede omkostninger]]-Månedlige_Udgifter_Tabel[[#This Row],[Faktiske omkostninger]])","v":""},{"$f":"Månedlige_Udgifter_Tabel[[#This Row],[Faktiske omkostninger]]","v":0}]
[null,"Vedligeholdelse","Bolig",{"v":200,"d":"kr. 200"},{"v":150,"d":"kr. 150"},{"$f":"IF(OR(Månedlige_Udgifter_Tabel[[#This Row],[Forventede omkostninger]]=\"\",Månedlige_Udgifter_Tabel[[#This Row],[Faktiske omkostninger]]=\"\"),\"\",Månedlige_Udgifter_Tabel[[#This Row],[Forventede omkostninger]]-Månedlige_Udgifter_Tabel[[#This Row],[Faktiske omkostninger]])","v":{"v":50,"d":"kr. 50"}},{"$f":"Månedlige_Udgifter_Tabel[[#This Row],[Faktiske omkostninger]]","v":150}]
[null,"Realkreditlån eller husleje","Bolig",{"v":1700,"d":"kr. 1,700"},{"v":1700,"d":"kr. 1,700"},{"$f":"IF(OR(Månedlige_Udgifter_Tabel[[#This Row],[Forventede omkostninger]]=\"\",Månedlige_Udgifter_Tabel[[#This Row],[Faktiske omkostninger]]=\"\"),\"\",Månedlige_Udgifter_Tabel[[#This Row],[Forventede omkostninger]]-Månedlige_Udgifter_Tabel[[#This Row],[Faktiske omkostninger]])","v":{"v":0,"d":"kr. 0"}},{"$f":"Månedlige_Udgifter_Tabel[[#This Row],[Faktiske omkostninger]]","v":1700}]
[null,"Naturgas/olie","Bolig",null,null,{"$f":"IF(OR(Månedlige_Udgifter_Tabel[[#This Row],[Forventede omkostninger]]=\"\",Månedlige_Udgifter_Tabel[[#This Row],[Faktiske omkostninger]]=\"\"),\"\",Månedlige_Udgifter_Tabel[[#This Row],[Forventede omkostninger]]-Månedlige_Udgifter_Tabel[[#This Row],[Faktiske omkostninger]])","v":""},{"$f":"Månedlige_Udgifter_Tabel[[#This Row],[Faktiske omkostninger]]","v":0}]
[null,"Internettjenesste","Bolig",{"v":100,"d":"kr. 100"},{"v":100,"d":"kr. 100"},{"$f":"IF(OR(Månedlige_Udgifter_Tabel[[#This Row],[Forventede omkostninger]]=\"\",Månedlige_Udgifter_Tabel[[#This Row],[Faktiske omkostninger]]=\"\"),\"\",Månedlige_Udgifter_Tabel[[#This Row],[Forventede omkostninger]]-Månedlige_Udgifter_Tabel[[#This Row],[Faktiske omkostninger]])","v":{"v":0,"d":"kr. 0"}},{"$f":"Månedlige_Udgifter_Tabel[[#This Row],[Faktiske omkostninger]]","v":100}]
[null,"Telefon (mobil)","Bolig",{"v":60,"d":"kr. 60"},{"v":60,"d":"kr. 60"},{"$f":"IF(OR(Månedlige_Udgifter_Tabel[[#This Row],[Forventede omkostninger]]=\"\",Månedlige_Udgifter_Tabel[[#This Row],[Faktiske omkostninger]]=\"\"),\"\",Månedlige_Udgifter_Tabel[[#This Row],[Forventede omkostninger]]-Månedlige_Udgifter_Tabel[[#This Row],[Faktiske omkostninger]])","v":{"v":0,"d":"kr. 0"}},{"$f":"Månedlige_Udgifter_Tabel[[#This Row],[Faktiske omkostninger]]","v":60}]
[null,"Telefon (hjemme)","Bolig",{"v":35,"d":"kr. 35"},{"v":39,"d":"kr. 39"},{"$f":"IF(OR(Månedlige_Udgifter_Tabel[[#This Row],[Forventede omkostninger]]=\"\",Månedlige_Udgifter_Tabel[[#This Row],[Faktiske omkostninger]]=\"\"),\"\",Månedlige_Udgifter_Tabel[[#This Row],[Forventede omkostninger]]-Månedlige_Udgifter_Tabel[[#This Row],[Faktiske omkostninger]])","v":{"v":-4,"d":"kr. -4"}},{"$f":"Månedlige_Udgifter_Tabel[[#This Row],[Faktiske omkostninger]]","v":39}]
[null,"Forsyninger","Bolig",{"v":40,"d":"kr. 40"},{"v":55,"d":"kr. 55"},{"$f":"IF(OR(Månedlige_Udgifter_Tabel[[#This Row],[Forventede omkostninger]]=\"\",Månedlige_Udgifter_Tabel[[#This Row],[Faktiske omkostninger]]=\"\"),\"\",Månedlige_Udgifter_Tabel[[#This Row],[Forventede omkostninger]]-Månedlige_Udgifter_Tabel[[#This Row],[Faktiske omkostninger]])","v":{"v":-15,"d":"kr. -15"}},{"$f":"Månedlige_Udgifter_Tabel[[#This Row],[Faktiske omkostninger]]","v":55}]
[null,"Bortskaffelse af affald og genbrug","Bolig",{"v":25,"d":"kr. 25"},{"v":22,"d":"kr. 22"},{"$f":"IF(OR(Månedlige_Udgifter_Tabel[[#This Row],[Forventede omkostninger]]=\"\",Månedlige_Udgifter_Tabel[[#This Row],[Faktiske omkostninger]]=\"\"),\"\",Månedlige_Udgifter_Tabel[[#This Row],[Forventede omkostninger]]-Månedlige_Udgifter_Tabel[[#This Row],[Faktiske omkostninger]])","v":{"v":3,"d":"kr. 3"}},{"$f":"Månedlige_Udgifter_Tabel[[#This Row],[Faktiske omkostninger]]","v":22}]
[null,"Vand og kloak","Bolig",{"v":25,"d":"kr. 25"},{"v":26,"d":"kr. 26"},{"$f":"IF(OR(Månedlige_Udgifter_Tabel[[#This Row],[Forventede omkostninger]]=\"\",Månedlige_Udgifter_Tabel[[#This Row],[Faktiske omkostninger]]=\"\"),\"\",Månedlige_Udgifter_Tabel[[#This Row],[Forventede omkostninger]]-Månedlige_Udgifter_Tabel[[#This Row],[Faktiske omkostninger]])","v":{"v":-1,"d":"kr. -1"}},{"$f":"Månedlige_Udgifter_Tabel[[#This Row],[Faktiske omkostninger]]","v":26}]
[null,"Sundhedsforsikring","Forsikring",{"v":400,"d":"kr. 400"},{"v":400,"d":"kr. 400"},{"$f":"IF(OR(Månedlige_Udgifter_Tabel[[#This Row],[Forventede omkostninger]]=\"\",Månedlige_Udgifter_Tabel[[#This Row],[Faktiske omkostninger]]=\"\"),\"\",Månedlige_Udgifter_Tabel[[#This Row],[Forventede omkostninger]]-Månedlige_Udgifter_Tabel[[#This Row],[Faktiske omkostninger]])","v":{"v":0,"d":"kr. 0"}},{"$f":"Månedlige_Udgifter_Tabel[[#This Row],[Faktiske omkostninger]]","v":400}]
[null,"Ejendomsforsikring","Forsikring",{"v":400,"d":"kr. 400"},{"v":400,"d":"kr. 400"},{"$f":"IF(OR(Månedlige_Udgifter_Tabel[[#This Row],[Forventede omkostninger]]=\"\",Månedlige_Udgifter_Tabel[[#This Row],[Faktiske omkostninger]]=\"\"),\"\",Månedlige_Udgifter_Tabel[[#This Row],[Forventede omkostninger]]-Månedlige_Udgifter_Tabel[[#This Row],[Faktiske omkostninger]])","v":{"v":0,"d":"kr. 0"}},{"$f":"Månedlige_Udgifter_Tabel[[#This Row],[Faktiske omkostninger]]","v":400}]
[null,"Livsforsikring","Forsikring",{"v":100,"d":"kr. 100"},{"v":100,"d":"kr. 100"},{"$f":"IF(OR(Månedlige_Udgifter_Tabel[[#This Row],[Forventede omkostninger]]=\"\",Månedlige_Udgifter_Tabel[[#This Row],[Faktiske omkostninger]]=\"\"),\"\",Månedlige_Udgifter_Tabel[[#This Row],[Forventede omkostninger]]-Månedlige_Udgifter_Tabel[[#This Row],[Faktiske omkostninger]])","v":{"v":0,"d":"kr. 0"}},{"$f":"Månedlige_Udgifter_Tabel[[#This Row],[Faktiske omkostninger]]","v":100}]
[null,"Kreditkort 1","Lån",{"v":200,"d":"kr. 200"},{"v":200,"d":"kr. 200"},{"$f":"IF(OR(Månedlige_Udgifter_Tabel[[#This Row],[Forventede omkostninger]]=\"\",Månedlige_Udgifter_Tabel[[#This Row],[Faktiske omkostninger]]=\"\"),\"\",Månedlige_Udgifter_Tabel[[#This Row],[Forventede omkostninger]]-Månedlige_Udgifter_Tabel[[#This Row],[Faktiske omkostninger]])","v":{"v":0,"d":"kr. 0"}},{"$f":"Månedlige_Udgifter_Tabel[[#This Row],[Faktiske omkostninger]]","v":200}]
[null,"Kreditkort 2","Lån",null,null,{"$f":"IF(OR(Månedlige_Udgifter_Tabel[[#This Row],[Forventede omkostninger]]=\"\",Månedlige_Udgifter_Tabel[[#This Row],[Faktiske omkostninger]]=\"\"),\"\",Månedlige_Udgifter_Tabel[[#This Row],[Forventede omkostninger]]-Månedlige_Udgifter_Tabel[[#This Row],[Faktiske omkostninger]])","v":""},{"$f":"Månedlige_Udgifter_Tabel[[#This Row],[Faktiske omkostninger]]","v":0}]
[null,"Kreditkort 3","Lån",null,null,{"$f":"IF(OR(Månedlige_Udgifter_Tabel[[#This Row],[Forventede omkostninger]]=\"\",Månedlige_Udgifter_Tabel[[#This Row],[Faktiske omkostninger]]=\"\"),\"\",Månedlige_Udgifter_Tabel[[#This Row],[Forventede omkostninger]]-Månedlige_Udgifter_Tabel[[#This Row],[Faktiske omkostninger]])","v":""},{"$f":"Månedlige_Udgifter_Tabel[[#This Row],[Faktiske omkostninger]]","v":0}]
[null,"Privat","Lån",null,null,{"$f":"IF(OR(Månedlige_Udgifter_Tabel[[#This Row],[Forventede omkostninger]]=\"\",Månedlige_Udgifter_Tabel[[#This Row],[Faktiske omkostninger]]=\"\"),\"\",Månedlige_Udgifter_Tabel[[#This Row],[Forventede omkostninger]]-Månedlige_Udgifter_Tabel[[#This Row],[Faktiske omkostninger]])","v":""},{"$f":"Månedlige_Udgifter_Tabel[[#This Row],[Faktiske omkostninger]]","v":0}]
[null,"Studielån","Lån",null,null,{"$f":"IF(OR(Månedlige_Udgifter_Tabel[[#This Row],[Forventede omkostninger]]=\"\",Månedlige_Udgifter_Tabel[[#This Row],[Faktiske omkostninger]]=\"\"),\"\",Månedlige_Udgifter_Tabel[[#This Row],[Forventede omkostninger]]-Månedlige_Udgifter_Tabel[[#This Row],[Faktiske omkostninger]])","v":""},{"$f":"Månedlige_Udgifter_Tabel[[#This Row],[Faktiske omkostninger]]","v":0}]
[null,"Beklædning","Personlig pleje",{"v":150,"d":"kr. 150"},{"v":140,"d":"kr. 140"},{"$f":"IF(OR(Månedlige_Udgifter_Tabel[[#This Row],[Forventede omkostninger]]=\"\",Månedlige_Udgifter_Tabel[[#This Row],[Faktiske omkostninger]]=\"\"),\"\",Månedlige_Udgifter_Tabel[[#This Row],[Forventede omkostninger]]-Månedlige_Udgifter_Tabel[[#This Row],[Faktiske omkostninger]])","v":{"v":10,"d":"kr. 10"}},{"$f":"Månedlige_Udgifter_Tabel[[#This Row],[Faktiske omkostninger]]","v":140}]
[null,"Tøjrens","Personlig pleje",null,null,{"$f":"IF(OR(Månedlige_Udgifter_Tabel[[#This Row],[Forventede omkostninger]]=\"\",Månedlige_Udgifter_Tabel[[#This Row],[Faktiske omkostninger]]=\"\"),\"\",Månedlige_Udgifter_Tabel[[#This Row],[Forventede omkostninger]]-Månedlige_Udgifter_Tabel[[#This Row],[Faktiske omkostninger]])","v":""},{"$f":"Månedlige_Udgifter_Tabel[[#This Row],[Faktiske omkostninger]]","v":0}]
[null,"Hår/negle","Personlig pleje",null,null,{"$f":"IF(OR(Månedlige_Udgifter_Tabel[[#This Row],[Forventede omkostninger]]=\"\",Månedlige_Udgifter_Tabel[[#This Row],[Faktiske omkostninger]]=\"\"),\"\",Månedlige_Udgifter_Tabel[[#This Row],[Forventede omkostninger]]-Månedlige_Udgifter_Tabel[[#This Row],[Faktiske omkostninger]])","v":""},{"$f":"Månedlige_Udgifter_Tabel[[#This Row],[Faktiske omkostninger]]","v":0}]
[null,"Fitnesscenter","Personlig pleje",null,null,{"$f":"IF(OR(Månedlige_Udgifter_Tabel[[#This Row],[Forventede omkostninger]]=\"\",Månedlige_Udgifter_Tabel[[#This Row],[Faktiske omkostninger]]=\"\"),\"\",Månedlige_Udgifter_Tabel[[#This Row],[Forventede omkostninger]]-Månedlige_Udgifter_Tabel[[#This Row],[Faktiske omkostninger]])","v":""},{"$f":"Månedlige_Udgifter_Tabel[[#This Row],[Faktiske omkostninger]]","v":0}]
[null,"Medicin","Personlig pleje",null,null,{"$f":"IF(OR(Månedlige_Udgifter_Tabel[[#This Row],[Forventede omkostninger]]=\"\",Månedlige_Udgifter_Tabel[[#This Row],[Faktiske omkostninger]]=\"\"),\"\",Månedlige_Udgifter_Tabel[[#This Row],[Forventede omkostninger]]-Månedlige_Udgifter_Tabel[[#This Row],[Faktiske omkostninger]])","v":""},{"$f":"Månedlige_Udgifter_Tabel[[#This Row],[Faktiske omkostninger]]","v":0}]
[null,"Mad","Kæledyr",{"v":150,"d":"kr. 150"},{"v":75,"d":"kr. 75"},{"$f":"IF(OR(Månedlige_Udgifter_Tabel[[#This Row],[Forventede omkostninger]]=\"\",Månedlige_Udgifter_Tabel[[#This Row],[Faktiske omkostninger]]=\"\"),\"\",Månedlige_Udgifter_Tabel[[#This Row],[Forventede omkostninger]]-Månedlige_Udgifter_Tabel[[#This Row],[Faktiske omkostninger]])","v":{"v":75,"d":"kr. 75"}},{"$f":"Månedlige_Udgifter_Tabel[[#This Row],[Faktiske omkostninger]]","v":75}]
[null,"Pleje","Kæledyr",{"v":20,"d":"kr. 20"},{"v":25,"d":"kr. 25"},{"$f":"IF(OR(Månedlige_Udgifter_Tabel[[#This Row],[Forventede omkostninger]]=\"\",Månedlige_Udgifter_Tabel[[#This Row],[Faktiske omkostninger]]=\"\"),\"\",Månedlige_Udgifter_Tabel[[#This Row],[Forventede omkostninger]]-Månedlige_Udgifter_Tabel[[#This Row],[Faktiske omkostninger]])","v":{"v":-5,"d":"kr. -5"}},{"$f":"Månedlige_Udgifter_Tabel[[#This Row],[Faktiske omkostninger]]","v":25}]
[null,"Medicin","Kæledyr",null,null,{"$f":"IF(OR(Månedlige_Udgifter_Tabel[[#This Row],[Forventede omkostninger]]=\"\",Månedlige_Udgifter_Tabel[[#This Row],[Faktiske omkostninger]]=\"\"),\"\",Månedlige_Udgifter_Tabel[[#This Row],[Forventede omkostninger]]-Månedlige_Udgifter_Tabel[[#This Row],[Faktiske omkostninger]])","v":""},{"$f":"Månedlige_Udgifter_Tabel[[#This Row],[Faktiske omkostninger]]","v":0}]
[null,"Legetøj","Kæledyr",null,null,{"$f":"IF(OR(Månedlige_Udgifter_Tabel[[#This Row],[Forventede omkostninger]]=\"\",Månedlige_Udgifter_Tabel[[#This Row],[Faktiske omkostninger]]=\"\"),\"\",Månedlige_Udgifter_Tabel[[#This Row],[Forventede omkostninger]]-Månedlige_Udgifter_Tabel[[#This Row],[Faktiske omkostninger]])","v":""},{"$f":"Månedlige_Udgifter_Tabel[[#This Row],[Faktiske omkostninger]]","v":0}]
[null,"Investeringskonto","Opsparing",{"v":200,"d":"kr. 200"},{"v":200,"d":"kr. 200"},{"$f":"IF(OR(Månedlige_Udgifter_Tabel[[#This Row],[Forventede omkostninger]]=\"\",Månedlige_Udgifter_Tabel[[#This Row],[Faktiske omkostninger]]=\"\"),\"\",Månedlige_Udgifter_Tabel[[#This Row],[Forventede omkostninger]]-Månedlige_Udgifter_Tabel[[#This Row],[Faktiske omkostninger]])","v":{"v":0,"d":"kr. 0"}},{"$f":"Månedlige_Udgifter_Tabel[[#This Row],[Faktiske omkostninger]]","v":200}]
[null,"Pensionskonto","Opsparing",null,null,{"$f":"IF(OR(Månedlige_Udgifter_Tabel[[#This Row],[Forventede omkostninger]]=\"\",Månedlige_Udgifter_Tabel[[#This Row],[Faktiske omkostninger]]=\"\"),\"\",Månedlige_Udgifter_Tabel[[#This Row],[Forventede omkostninger]]-Månedlige_Udgifter_Tabel[[#This Row],[Faktiske omkostninger]])","v":""},{"$f":"Månedlige_Udgifter_Tabel[[#This Row],[Faktiske omkostninger]]","v":0}]
[null,"National","Skat",{"v":300,"d":"kr. 300"},{"v":300,"d":"kr. 300"},{"$f":"IF(OR(Månedlige_Udgifter_Tabel[[#This Row],[Forventede omkostninger]]=\"\",Månedlige_Udgifter_Tabel[[#This Row],[Faktiske omkostninger]]=\"\"),\"\",Månedlige_Udgifter_Tabel[[#This Row],[Forventede omkostninger]]-Månedlige_Udgifter_Tabel[[#This Row],[Faktiske omkostninger]])","v":{"v":0,"d":"kr. 0"}},{"$f":"Månedlige_Udgifter_Tabel[[#This Row],[Faktiske omkostninger]]","v":300}]
[null,"Kommuneskat","Skat",null,null,{"$f":"IF(OR(Månedlige_Udgifter_Tabel[[#This Row],[Forventede omkostninger]]=\"\",Månedlige_Udgifter_Tabel[[#This Row],[Faktiske omkostninger]]=\"\"),\"\",Månedlige_Udgifter_Tabel[[#This Row],[Forventede omkostninger]]-Månedlige_Udgifter_Tabel[[#This Row],[Faktiske omkostninger]])","v":""},{"$f":"Månedlige_Udgifter_Tabel[[#This Row],[Faktiske omkostninger]]","v":0}]
[null,"Regional","Skat",null,null,{"$f":"IF(OR(Månedlige_Udgifter_Tabel[[#This Row],[Forventede omkostninger]]=\"\",Månedlige_Udgifter_Tabel[[#This Row],[Faktiske omkostninger]]=\"\"),\"\",Månedlige_Udgifter_Tabel[[#This Row],[Forventede omkostninger]]-Månedlige_Udgifter_Tabel[[#This Row],[Faktiske omkostninger]])","v":""},{"$f":"Månedlige_Udgifter_Tabel[[#This Row],[Faktiske omkostninger]]","v":0}]
[null,"Udgifter til bus/taxa","Transport",{"v":100,"d":"kr. 100"},{"v":150,"d":"kr. 150"},{"$f":"IF(OR(Månedlige_Udgifter_Tabel[[#This Row],[Forventede omkostninger]]=\"\",Månedlige_Udgifter_Tabel[[#This Row],[Faktiske omkostninger]]=\"\"),\"\",Månedlige_Udgifter_Tabel[[#This Row],[Forventede omkostninger]]-Månedlige_Udgifter_Tabel[[#This Row],[Faktiske omkostninger]])","v":{"v":-50,"d":"kr. -50"}},{"$f":"Månedlige_Udgifter_Tabel[[#This Row],[Faktiske omkostninger]]","v":150}]
[null,"Brændstof","Transport",{"v":450,"d":"kr. 450"},{"v":400,"d":"kr. 400"},{"$f":"IF(OR(Månedlige_Udgifter_Tabel[[#This Row],[Forventede omkostninger]]=\"\",Månedlige_Udgifter_Tabel[[#This Row],[Faktiske omkostninger]]=\"\"),\"\",Månedlige_Udgifter_Tabel[[#This Row],[Forventede omkostninger]]-Månedlige_Udgifter_Tabel[[#This Row],[Faktiske omkostninger]])","v":{"v":50,"d":"kr. 50"}},{"$f":"Månedlige_Udgifter_Tabel[[#This Row],[Faktiske omkostninger]]","v":400}]
[null,"Forsikring","Transport",{"v":300,"d":"kr. 300"},{"v":300,"d":"kr. 300"},{"$f":"IF(OR(Månedlige_Udgifter_Tabel[[#This Row],[Forventede omkostninger]]=\"\",Månedlige_Udgifter_Tabel[[#This Row],[Faktiske omkostninger]]=\"\"),\"\",Månedlige_Udgifter_Tabel[[#This Row],[Forventede omkostninger]]-Månedlige_Udgifter_Tabel[[#This Row],[Faktiske omkostninger]])","v":{"v":0,"d":"kr. 0"}},{"$f":"Månedlige_Udgifter_Tabel[[#This Row],[Faktiske omkostninger]]","v":300}]
[null,"Vægtafgift ","Transport",{"v":25,"d":"kr. 25"},{"v":25,"d":"kr. 25"},{"$f":"IF(OR(Månedlige_Udgifter_Tabel[[#This Row],[Forventede omkostninger]]=\"\",Månedlige_Udgifter_Tabel[[#This Row],[Faktiske omkostninger]]=\"\"),\"\",Månedlige_Udgifter_Tabel[[#This Row],[Forventede omkostninger]]-Månedlige_Udgifter_Tabel[[#This Row],[Faktiske omkostninger]])","v":{"v":0,"d":"kr. 0"}},{"$f":"Månedlige_Udgifter_Tabel[[#This Row],[Faktiske omkostninger]]","v":25}]
[null,"Vedligeholdelse","Transport",{"v":100,"d":"kr. 100"},{"v":50,"d":"kr. 50"},{"$f":"IF(OR(Månedlige_Udgifter_Tabel[[#This Row],[Forventede omkostninger]]=\"\",Månedlige_Udgifter_Tabel[[#This Row],[Faktiske omkostninger]]=\"\"),\"\",Månedlige_Udgifter_Tabel[[#This Row],[Forventede omkostninger]]-Månedlige_Udgifter_Tabel[[#This Row],[Faktiske omkostninger]])","v":{"v":50,"d":"kr. 50"}},{"$f":"Månedlige_Udgifter_Tabel[[#This Row],[Faktiske omkostninger]]","v":50}]
[null,"Parkeringsgebyrer","Transport",null,null,{"$f":"IF(OR(Månedlige_Udgifter_Tabel[[#This Row],[Forventede omkostninger]]=\"\",Månedlige_Udgifter_Tabel[[#This Row],[Faktiske omkostninger]]=\"\"),\"\",Månedlige_Udgifter_Tabel[[#This Row],[Forventede omkostninger]]-Månedlige_Udgifter_Tabel[[#This Row],[Faktiske omkostninger]])","v":""},{"$f":"Månedlige_Udgifter_Tabel[[#This Row],[Faktiske omkostninger]]","v":0}]
[null,"Afbetaling af køretøj","Transport",{"v":450,"d":"kr. 450"},{"v":450,"d":"kr. 450"},{"$f":"IF(OR(Månedlige_Udgifter_Tabel[[#This Row],[Forventede omkostninger]]=\"\",Månedlige_Udgifter_Tabel[[#This Row],[Faktiske omkostninger]]=\"\"),\"\",Månedlige_Udgifter_Tabel[[#This Row],[Forventede omkostninger]]-Månedlige_Udgifter_Tabel[[#This Row],[Faktiske omkostninger]])","v":{"v":0,"d":"kr. 0"}},{"$f":"Månedlige_Udgifter_Tabel[[#This Row],[Faktiske omkostninger]]","v":450}]

{"sheet":"Yderligere data","index":3,"n_rows":17,"n_cols":6,"rows_kept":17}
[{"$nulls":5}," "]
[null,"Pivottabel for diagrammet Budgetoversigt",null,null,"Kategoriliste"]
[]
[null,"Categories","Omkostninger",null,"Hvis du vil tilføje en kategori, skal du skrive nedenfor"]
[null,"Kæledyr",{"v":100,"d":"kr. 100"},null,"Børn"]
[null,"Gaver og velgørenhed",{"v":125,"d":"kr. 125"},null,"Underholdning"]
[null,"Børn",{"v":140,"d":"kr. 140"},null,"Mad"]
[null,"Personlig pleje",{"v":140,"d":"kr. 140"},null,"Gaver og velgørenhed"]
[null,"Lån",{"v":200,"d":"kr. 200"},null,"Bolig"]
[null,"Opsparing",{"v":200,"d":"kr. 200"},null,"Forsikring"]
[null,"Skat",{"v":300,"d":"kr. 300"},null,"Lån"]
[null,"Underholdning",{"v":358,"d":"kr. 358"},null,"Personlig pleje"]
[null,"Forsikring",{"v":900,"d":"kr. 900"},null,"Kæledyr"]
[null,"Mad",{"v":1320,"d":"kr. 1,320"},null,"Opsparing"]
[null,"Transport",{"v":1375,"d":"kr. 1,375"},null,"Skat"]
[null,"Bolig",{"v":2702,"d":"kr. 2,702"},null,"Transport"]
[null,"Hovedtotal",{"v":7860,"d":"kr. 7,860"}]